Cogmind - Beta 14 @@@ ROGUE MODE // 2024.11.17 @ 07:33:18 Player: Fangrelle Result: Destroyed by G-34 Mercenary with Small Laser Performance ------------- Evolutions (0) 0 Regions Visited (2) 400 Robots Destroyed (23) 115 Value Destroyed (470) 470 Prototype IDs (0) 0 Alien Tech Used (0) 0 Bonus (32) 32 TOTAL SCORE: 1017 Bonus ------- High Alert Combat Kills 32 Cogmind --------- Core Integrity 0/250 Matter 167/300 Energy 100/100 System Corruption 0% Temperature Cool (6) Movement Core (700) Ox13 Location -10/Mines Parts ------- > --- POWER (1) -------- (None) > --- PROPULSION (2) --- (None) > --- UTILITY (2) ------ High-capacity Storage Unit > --- WEAPON (2) ------- (None) > --- INVENTORY (20) --- Light Treads Light Treads Wheel Flight Unit Flight Unit Flight Unit Flight Unit Flight Unit Medium Matter Pod (0) Datajack Peak State ------------ > --- POWER ------------ Ion Engine > --- PROPULSION ------- Light Treads Light Treads > --- UTILITY ---------- High-capacity Storage Unit Light Armor Plating > --- WEAPON ----------- Assault Rifle Grenade Launcher > --- INVENTORY -------- Light Treads Light Treads Wheel Flight Unit Flight Unit Flight Unit Flight Unit Flight Unit Medium Matter Pod Datajack [Rating: 8] Favorites ----------- Power Ion Engine Engine Ion Engine Propulsion Light Treads Treads Light Treads Leg Aluminum Leg Flight Unit Flight Unit Utility High-capacity Storage Unit Storage High-capacity Storage Unit Protection Light Armor Plating Weapon Assault Rifle Energy Gun Medium Laser Ballistic Gun Assault Rifle Launcher Grenade Launcher Build | -11 -10 -10 ------- Run | Yrd Mat Min Slots Evolved . | . . . Power . | . . . Propulsion . | . . . Utility . | . . . Weapon . | . . . Parts Attached 12 | . 12 . Power 1 | . 1 . Engine 1 | . 1 . Core . | . . . Reactor . | . . . Propulsion 6 | . 6 . Treads 3 | . 3 . Leg . | . . . Wheel . | . . . Hover . | . . . Flight 3 | . 3 . Utility 3 | . 3 . Device . | . . . Storage 2 | . 2 . Processor . | . . . Hackware . | . . . Protection 1 | . 1 . Artifact . | . . . Weapon 2 | . 2 . Energy Gun . | . . . Energy Cannon . | . . . Ballistic Gun 1 | . 1 . Ballistic Cannon . | . . . Launcher 1 | . 1 . Special Weapon . | . . . Impact Weapon . | . . . Slashing Weapon . | . . . Piercing Weapon . | . . . Special Melee Weapon . | . . . Unidentified Prototypes . | . . . Parts Lost 8 | . 2 6 Power 1 | . . 1 Propulsion 4 | . 2 2 Utility 1 | . . 1 Weapon 2 | . . 2 Highest Loss Streak 3 | . 1 3 To Critical Strikes . | . . . Average Slot Usage (%) 74 | . 78 53 Engine 11 | . 10 14 Treads 20 | . 19 22 Leg 3 | . 3 . Flight 1 | . 2 . Storage 11 | . 10 14 Protection 3 | . 4 1 Energy Gun 2 | . 3 . Ballistic Gun 10 | . 11 1 Launcher 9 | . 10 . Peak Build Rating 8 | . 8 8 Average Rating 5 | . 5 4 On Entrance 6 | 6 6 8 Naked Turns . | . . . Heaviest Build 53 | 11 53 45 Greatest Support 40 | 20 40 40 Greatest Overweight (x) 14 | . 1 14 Average Overweight (x) . | . . 2 Largest Inventory Capacity 20 | . 20 20 Average Capacity 14 | . 14 20 Most Carried 10 | . 10 10 Average Carried 6 | . 5 10 Final Capacity 20 | 8 20 20 Final Carried 10 | 6 10 10 Class Distribution -------------------- 100% | Mutant Dominant Class ---------------- Mutant | -10/Materials Mutant | -10/Mines Resources | -11 -10 -10 ----------- Run | Yrd Mat Min Matter Collected 316 | 200 114 2 Remotely . | . . . Salvage Created 277 | . 275 2 Parts 39 | . 39 . Haulers Intercepted 1 | . 1 . Recyclers Shooed . | . . . Parts Field Recycled . | . . . Retrieved Matter . | . . . Parts Self-Destructed . | . . . Prevented . | . . . Kills | -11 -10 -10 ------- Run | Yrd Mat Min Combat Hostiles Destroyed 16 | . 15 1 Melee 1 | . . 1 Guns 4 | . 4 . AOE 11 | . 11 . Classes Destroyed 8 | . 8 . Worker 1 | . 1 . Builder 2 | . 2 . Tunneler 1 | . 1 . Hauler 1 | . 1 . Operator 1 | . 1 . Watcher 1 | . 1 . Swarmer 9 | . 9 . Grunt 7 | . 6 1 Best Kill Streak 11 | . 11 1 Combat Bots Only 6 | . 6 1 Max Kills in Single Turn 3 | . 3 1 Gunslinging . | . . . Exploded 2 | . 2 . Melee 1 | . . 1 Uniques/NPCs Destroyed . | . . . Combat | -11 -10 -10 -------- Run | Yrd Mat Min Hostile Shots Fired 120 | . 45 75 Missed 37 | . 14 23 Damage Taken 1016 | . 351 665 Core 258 | . 76 182 Absorbed by Shields . | . . . Core Remaining (%) 100 | 100 . . Volleys Fired 28 | . 21 7 Largest 2 | . 2 1 Hottest 50 | . 50 20 Shots Fired 42 | . 35 7 Gun 28 | . 21 7 Cannon . | . . . Launcher 14 | . 14 . Special . | . . . Kinetic 24 | . 17 7 Thermal 4 | . 4 . Explosive 14 | . 14 . Electromagnetic . | . . . Robot Hit Streak 16 | . 9 16 Robot Miss Streak 3 | . 3 . Penetration Max . | . . . Secondary Targets . | . . . Shots Hit Robots 20 | . 13 7 Core Hits 34 | . 32 2 Critical Kills . | . . . Critical Parts Destroyed . | . . . Critical Strikes . | . . . Melee Attacks . | . . . Impact . | . . . Slashing . | . . . Piercing . | . . . Sneak Attacks . | . . . Combat Hostiles . | . . . Follow-up Attacks . | . . . Damage Inflicted 1557 | . 1447 110 Guns 234 | . 148 86 Cannons . | . . . Explosions 1299 | . 1299 . Melee . | . . . Ramming 24 | . . 24 Kinetic 210 | . 124 86 Thermal 241 | . 241 . Explosive 963 | . 963 . Electromagnetic 119 | . 119 . Impact . | . . . Slashing . | . . . Piercing . | . . . Highest Corruption . | . . . Average Corruption . | . . . Corruption Purged . | . . . Corruption Blocked . | . . . Overload Shots . | . . . Overflow Damage 99 | . 99 . Projectiles . | . . . Explosions 99 | . 99 . Melee . | . . . Knockbacks . | . . . Impact . | . . . Kinetic . | . . . Secondary . | . . . Self-Inflicted Damage 51 | . 51 . Shots 2 | . 2 . Rammed 13 | . . 13 Targets Rammed 13 | . . 13 Kicked . | . . . Crushed . | . . . Highest Temperature 11 | . 8 11 Average Temperature 4 | . 3 5 Received Heat Transfer 495 | . 102 393 Siege Activations . | . . . Robots Corrupted . | . . . Combat Hostiles . | . . . Parts Fried . | . . . Impact Corruptions . | . . . Robots Melted . | . . . Combat Hostiles . | . . . Parts Melted . | . . . Heat Transferred 224 | . 224 . Parts Sabotaged . | . . . Parts Stolen . | . . . Parts Stripped . | . . . Power Chain Reactions . | . . . Alert | -11 -10 -10 ------- Run | Yrd Mat Min Peak Influence 644 | . 644 182 Initial 182 | . . 182 Average 311 | . 338 164 Maximum Alert Level 2 | . 2 . Low Security (%) 40 | . 29 100 Level 1 3 | . 4 . Level 2 55 | . 66 . Level 3 . | . . . Level 4 . | . . . Level 5 . | . . . High Security . | . . . Max Security . | . . . Squads Dispatched 3 | . 3 . Investigation 1 | . 1 . Extermination . | . . . Reinforcement 2 | . 2 . Assault . | . . . Garrison . | . . . Intercept . | . . . Searches Triggered . | . . . Construction Impeded . | . . . Haulers Reinforced . | . . . Active Scanning Responses . | . . . Cargo Convoy Interrupts . | . . . Stealth | -11 -10 -10 --------- Run | Yrd Mat Min Distress Signals . | . . . Communications Jammed . | . . . Distress Signals . | . . . Times Spotted 20 | . 16 4 Peak Tracking Total 4 | . 4 3 Tactical Retreats 3 | . 2 1 Traps | -11 -10 -10 ------- Run | Yrd Mat Min Traps Triggered 1 | . 1 . Indirectly . | . . . Trap Hack Attempts . | . . . Triggered . | . . . Disarmed . | . . . Reprogrammed . | . . . Reused . | . . . Traps Extracted . | . . . Installed . | . . . Triggered . | . . . Objects Rigged 3 | . 3 . Exploded 2 | . 2 . Machines | -11 -10 -10 ---------- Run | Yrd Mat Min Machines Disabled 10 | . 10 . Max in Single Turn 3 | . 3 . Machines Repaired . | . . . Machines Dismantled . | . . . Machines Sabotaged . | . . . Overloaded Fab Kills . | . . . Hacking | -11 -10 -10 --------- Run | Yrd Mat Min Machines Accessed 5 | . 5 . Terminals 4 | . 4 . Fabricators . | . . . Repair Stations . | . . . Recycling Units 1 | . 1 . Scanalyzers . | . . . Garrison Access . | . . . Total Hacks 14 | . 14 . Successful 10 | . 10 . Failed 4 | . 4 . Catastrophic . | . . . Database Lockouts . | . . . Manual 12 | . 12 . Terminals 10 | . 10 . Fabricators . | . . . Repair Stations . | . . . Recycling Units 4 | . 4 . Scanalyzers . | . . . Garrison Access . | . . . Terminal Hacks 1 | . 1 . Scanalyzer Index 1 | . 1 . Fabricator Hacks . | . . . Repair Station Hacks . | . . . Recycling Unit Hacks 2 | . 2 . Report Inventory 1 | . 1 . Retrieve Components 1 | . 1 . Scanalyzer . | . . . Garrison Access Hacks . | . . . Unauthorized Hacks 7 | . 7 . Terminals 6 | . 6 . Botnet 4 | . 4 . Detonate 1 | . 1 . Operators 1 | . 1 . Fabricators . | . . . Repair Stations . | . . . Recycling Units 1 | . 1 . Tunnel 1 | . 1 . Scanalyzers . | . . . Garrison Access . | . . . Data Cores Recovered . | . . . Used . | . . . Hacking Detections 4 | . 4 . Full Trace Events . | . . . Feedback Events . | . . . Feedback Blocked . | . . . Robot Schematics Acquired . | . . . Robots Built . | . . . Authchips . | . . . Time . | . . . Total Robot Build Rating . | . . . Part Schematics Acquired . | . . . Parts Built . | . . . Authchips . | . . . Time . | . . . Total Part Build Rating . | . . . Parts Repaired . | . . . Time . | . . . Parts Recycled . | . . . Recycled Matter . | . . . Retrieved Matter . | . . . Retrieved Components 2 | . 2 . Parts Scanalyzed . | . . . Part Schematics Acquired . | . . . Parts Damaged . | . . . Bothacking | -11 -10 -10 ------------ Run | Yrd Mat Min Used RIF Installer . | . . . Robots Hacked . | . . . Non-combat . | . . . Combat . | . . . Robot Hacks Applied . | . . . Relay Couplers Released . | . . . Fabnet Peak Effective % . | . . . Robots Rewired . | . . . Allies Hacked . | . . . Hacks Repelled . | . . . Allies | -11 -10 -10 -------- Run | Yrd Mat Min Total Allies . | . . . Largest Group . | . . . Highest-Rated Group . | . . . Highest-Rated Ally . | . . . Total Orders . | . . . Ally Attacks . | . . . Total Damage . | . . . Kills . | . . . Allies Corrupted . | . . . Allies Melted . | . . . Intel | -11 -10 -10 ------- Run | Yrd Mat Min Robot Analysis Total . | . . . Derelict Logs Recovered . | . . . Drone Launches . | . . . Drone Recoveries . | . . . Exploration | -11 -10 -10 ------------- Run | Yrd Mat Min Turns Passed 803 | . 680 123 Spaces Moved 410 | 1 382 27 Core 2 | . . 2 Treads 218 | . 193 25 Legs 111 | 1 110 . Wheels . | . . . Hover . | . . . Flight 79 | . 79 . Fastest Speed 37 | 120 37 240 Average Speed 166 | 120 157 301 Slowest Speed 750 | 120 240 750 Overloaded Moves . | . . . Propulsion Burnouts . | . . . Robots Hopped 1 | . 1 . Cave-ins Triggered . | . . . Exploration Rate (%) 26 | 2 67 10 Regions Visited 2 Branch Regions 1 Pre-discovered Areas 1 | . 1 . Known Exits Taken . | . . . Unknown Exits Taken 2 | 1 1 . Scrap Searched . | . . . Spaces Dug . | . . . Terrain Destroyed 50 | . 50 . Melee . | . . . Projectile . | . . . AOE 50 | . 50 . Terrain Rammed . | . . . Walls Destroyed . | . . . Machines Disabled . | . . . Actions | -11 -10 -10 --------- Run | Yrd Mat Min Total 471 | . 424 47 Wait . | . . . Move 406 | . 379 27 Hop 1 | . 1 . Pick Up 8 | . 8 . Fast Attach 5 | . 5 . Attach 4 | . 4 . Detach 1 | . 1 . Swap 3 | . 3 . Drop 2 | . 2 . Fire 28 | . 21 7 Melee . | . . . Ram . | . . . Kick . | . . . Crush 13 | . . 13 Escape Stasis . | . . . Rewire . | . . . Trap . | . . . Miscellaneous . | . . . Route ------- -11/Scrapyard -10/Materials (discovered 3 exits: [*Mat] / [*Min x2]) -10/Mines History --------- Turn | Location | Event 1 | -11/Scrapyard | Discovered new exit (range 0) 1 | -11/Scrapyard | Entered Materials 48 | -10/Materials | Discovered new exit (range 4) 163 | -10/Materials | Discovered new exit (range 9) 200 | -10/Materials | Discovered new exit (range 16) 321 | -10/Materials | Build established: Mutant 681 | -10/Materials | Entered Mines 716 | -10/Mines | Core integrity fell below 50% 728 | -10/Mines | Lost 3 parts (1u2w) 764 | -10/Mines | Core integrity fell below 20% 774 | -10/Mines | Met a Derelict bent on vengeance 804 | -10/Mines | Destroyed by G-34 Mercenary with Small Laser Last Messages --------------- 00583_ S-10 Pest destroyed. 00586_ U-05 Engineer lays Concrete. 00612_ K-01 Serf collects debris. 00626_ Acquired Flight Unit. LOCATION=UNKNOWN GOAL=ESCAPE 00682_ Grenade Launcher destroyed. 00693_ Assault Rifle destroyed. 00695_ Slammed into G-34 Mercenary. 00697_ Lgt. Armor Plating destroyed. 00698_ Slammed into G-34 Mercenary. 00723_ Critical hit (Burn: +37). 00724_ Slammed into G-34 Mercenary. 00724_ G-34 Mercenary destroyed. 00725_ Acquired 2 matter. 00765_ Lgt. Treads destroyed. 00780_ T-07 Excavator is excavating. 00792_ Lgt. Treads destroyed. 00793_ T-07 Excavator is excavating. 00802_ Ion Engine destroyed. Map ----- +----------------------------------------------------+ | ???????????????????????????????????????????? | | ???????????????????????????????????????????? | | ????????????????????????????#??????????????? | | ????????????????????????????# ?????????????? | | ????????????????????????????# ###########??? | | ????????????????????????????? ## #??? | | ??????????????????????????????# ## #??? | | ??????????????????????????????# #??? | | ??????????????????????????????# ## #??? | | ??????????????????????????????# ## #??? | | ??????????????????????????????# ## #??? | | ??????????????????????????????# #### ####??? | | ??????????????????????????????# #??# #?????? | | ??????????????????????????????# #### #?????? | | ????????????????????????#####?# ## #?????? | | ???????????????????????## ##### ## #?????? | | ???????????????????????# #??# #?????? | | ???????????????????????# ##?# ####?????? | | ????????????????????????# #?# #????????? | | ????????????????????????# ### #????????? | | ????????????????????????# ## #????????? | | ?????????????????????????# g #????????? | | ?????????????????????????# g####????????? | | ?????????????????????????# #???????????? | | ???????????????????# #### #???????????? | | ???????????????????# t @ ##???????????? | | ???????????????????# ## ## ##????????????? | | ???????????????????????# ?####?????????????? | | ???????????????????????#???????????????????? | | ???????????????????????????????????????????? | | ???????????????????????????????????????????? | | ???????????????????????????????????????????? | | ???????????????????????????????????????????? | | ???????????????????????????????????????????? | | ???????????????????????????????????????????? | | ???????????????????????????????????????????? | | ???????????????????????????????????????????? | | ???????????????????????????????????????????? | | ???????????????????????????????????????????? | | ???????????????????????????????????????????? | | ???????????????????????????????????????????? | | ???????????????????????????????????????????? | | ???????????????????????????????????????????? | | ???????????????????????????????????????????? | | | | | | | | | | | | | +----------------------------------------------------+ Best States ------------- Heat Dissipation 25 Energy Generation 10 Energy Capacity 250 Matter Stores 300 Matter Capacity 300 Sight Range 16 Terrain Scan Density 10 Armor Coverage 150 Evasion (%) 62 Recoil Reduction 2 Item Schematics ----------------- None Robot Schematics ------------------ None Fabricated ------------ Nothing Alien Tech Used ----------------- None Achievements -------------- None Challenges ------------ None Game ------ Seed DecoderFrostScanner Manual? 0 Play Time 00:06:11 Cumulative 97.1 hours Start 2024.11.17 @ 07:04:50 End 2024.11.17 @ 07:33:18 Sessions 5 Manual Loads 0 Difficulty Rogue Special Mode None Game No. 173 Rogue 173 Adventurer 0 Explorer 0 Win Type - Total 0 Types 0/0/0/0/0/0/0/0/0 Lore% 42 Gallery% 38 Achievement% 34 Wizard Run 0 Options --------- Layout 0 ASCII 0 Keyboard 0 Movement Mouse Keybinds 0 Fullscreen 1 Font 24/Cog Map View 91x25 Zoom Use 88% Tactical HUD 1 Map Filters NONE Filters NONE Steam 1 RUN: a8f2d654-5087-4098-bf57-5e850094c1b5